bitfinex-derivatives/quotes_SOLF0:USTF0_20260312
["timestamp","ask_amount","ask_price","bid_price","bid_amount"]
[1773332428814,3.43348087,86.37,86.338,3.83652579]
[1773332430013,3.43348087,86.37,86.339,10.423]
[1773332430212,3.43348087,86.37,86.338,3.83652579]
[1773332430410,3.43348087,86.38,86.339,36.46]
[1773332430616,3.43348087,86.39,86.34,3.83652579]
[1773332430806,8.73461066,86.389,86.34,3.83652579]
[1773332431012,3.43348087,86.38,86.348,10.422]
[1773332431705,3.43123273,86.38,86.348,10.422]
[1773332432514,3.43123273,86.37,86.339,36.46]
[1773332435116,3.43123273,86.37,86.341,10.423]
[1773332435511,3.43123273,86.37,86.339,36.46]
[1773332437213,3.43123273,86.38,86.341,3.83652579]
[1773332437415,3.43123273,86.38,86.289,34.8]
[1773332437416,3.43123273,86.4,86.343,0.65849848]
[1773332437715,3.43123273,86.4,86.367,0.65849848]
[1773332437919,3.43123273,86.4,86.368,36.46]
[1773332438119,3.43123273,86.39,86.368,36.46]
[1773332438320,3.85466423,86.399,86.368,36.46]
[1773332438520,3.85466423,86.399,86.354,0.65849848]
[1773332438710,3.43123273,86.39,86.355,36.46]
[1773332438916,7.28589696,86.39,86.347,36.46]
[1773332439923,7.28589696,86.39,86.348,0.61655774]
[1773332440918,7.28589696,86.39,86.355,10.421]
[1773332441520,10.7438319,86.417,86.347,36.46]
[1773332441521,3.43123273,86.38,86.347,36.46]
[1773332441922,3.43123273,86.37,86.347,36.46]
[1773332442223,3.43123273,86.37,86.334,0.67381289]
[1773332442415,3.43123273,86.38,86.335,37.13381289]
[1773332442614,3.43123273,86.38,86.337,0.67381289]
[1773332443121,3.43123273,86.38,86.338,36.46]
[1773332444025,3.43123273,86.38,86.342,10.423]
[1773332446223,3.82118454,86.401,86.351,0.66363338]
[1773332446429,3.43123273,86.39,86.351,0.66363338]
[1773332446623,3.82118454,86.401,86.351,0.66363338]
[1773332446927,3.43123273,86.39,86.351,0.66363338]
[1773332448026,3.43123273,86.39,86.35,36.46]
[1773332448027,3.43123273,86.41,86.357,0.66270189]
[1773332448727,3.82118454,86.416,86.357,0.66270189]
[1773332448919,3.43123273,86.4,86.368,10.419]
[1773332450123,7.25241727,86.39,86.352,36.46]
[1773332450326,3.82118454,86.379,86.338,36.46]
[1773332450530,3.82118454,86.379,86.339,36.46]
[1773332450931,3.74314058,86.369,86.339,36.46]
[1773332451127,3.74314058,86.389,86.34,0.65945117]
[1773332451431,3.43123273,86.38,86.34,0.65945117]
[1773332452024,3.74314058,86.389,86.354,10.421]
[1773332452225,12.13778878,86.4,86.351,0.65945117]
[1773332452424,8.70655605,86.399,86.353,0.65945117]
[1773332452623,8.70655605,86.398,86.353,0.65945117]
[1773332452930,8.70655605,86.397,86.357,10.421]
[1773332453225,8.70655605,86.396,86.357,10.421]
[1773332453419,10.7438319,86.433,86.38,3.43123273]
[1773332453623,10.7438319,86.433,86.327,162.164]
[1773332453629,3.75260352,86.435,86.39,3.43123273]
[1773332453929,3.75260352,86.435,86.39,39.89123273]
[1773332454525,8.10631971,86.429,86.384,10.417]
[1773332455733,3.43123273,86.43,86.383,36.46]
[1773332455734,8.09502976,86.419,86.383,36.46]
[1773332456932,8.09502976,86.419,86.384,10.418]
[1773332457730,3.43123273,86.43,86.394,10.416]
[1773332458031,8.11146268,86.429,86.383,36.46]
[1773332459029,8.11146268,86.429,86.385,10.417]
[1773332459630,3.43123273,86.44,86.39,3.43123273]
[1773332459824,8.12296529,86.443,86.391,36.44]
[1773332460631,8.12296529,86.487,86.42,3.43123273]
[1773332460837,10.7438319,86.527,86.461,0.0354551]
[1773332461033,10.7438319,86.527,86.404,162.02]
[1773332461034,10.403,86.508,86.456,10.409]
[1773332461236,3.43123273,86.52,86.461,0.0354551]
[1773332461425,3.43123273,86.52,86.471,0.0354551]
[1773332461632,3.43123273,86.52,86.404,182.85]
[1773332461633,11.74164389,86.538,86.481,0.0354551]
[1773332461929,3.43123273,86.56,86.51,3.43123273]
[1773332462131,3.43123273,86.56,86.511,36.44]
[1773332462336,3.43123273,86.56,86.511,36.4754551]
[1773332462532,3.43123273,86.58,86.521,0.0354551]
[1773332462743,3.43123273,86.58,86.53,3.43123273]
[1773332462941,3.43123273,86.56,86.521,0.0354551]
[1773332463553,4.07541162,86.602,86.521,0.0354551]
[1773332463842,4.07541162,86.602,86.53,9.14940664]
[1773332464030,4.07541162,86.602,86.545,10.398]
[1773332464334,9.14940664,86.62,86.545,10.398]
[1773332464534,4.07541162,86.602,86.534,10.399]
[1773332465038,4.07541162,86.602,86.545,10.398]
[1773332465236,4.07541162,86.602,86.546,36.44]
[1773332465437,4.10515046,86.619,86.53,9.14940664]
[1773332465638,4.10515046,86.619,86.559,10.396]
[1773332465837,4.10515046,86.641,86.57,9.14940664]
[1773332466041,4.10515046,86.669,86.571,36.44]
[1773332466243,10.384,86.665,86.589,10.393]
[1773332466542,4.10515046,86.664,86.589,10.393]
[1773332466741,4.15534725,86.662,86.589,10.393]
[1773332467138,4.15534725,86.662,86.59,36.42]
[1773332467341,4.15534725,86.668,86.59,36.42]
[1773332467840,4.15534725,86.647,86.59,36.42]
[1773332469039,4.15534725,86.647,86.591,10.393]
[1773332469343,4.15534725,86.647,86.508,161.826]
[1773332469544,4.15790554,86.639,86.54,9.14940664]
[1773332469844,4.15790554,86.657,86.58,9.14940664]
[1773332470043,4.15790554,86.679,86.58,9.14940664]
[1773332470434,4.15790554,86.679,86.615,10.39]
[1773332470634,4.15790554,86.679,86.6,9.14940664]
[1773332470945,4.0889789,86.697,86.601,36.4]
[1773332471142,4.0889789,86.693,86.601,36.4]
[1773332471639,4.0889789,86.693,86.6,9.14940664]
[1773332471845,4.0889789,86.693,86.601,36.4]
[1773332472038,9.14940664,86.7,86.6,9.14940664]
[1773332472039,4.0889789,86.691,86.614,10.39]
[1773332472239,4.0889789,86.691,86.602,36.4]
[1773332472240,9.14940664,86.69,86.612,36.4]
[1773332472440,4.0889789,86.689,86.612,36.4]
[1773332473143,14.4699789,86.689,86.616,10.39]
[1773332473542,14.4699789,86.689,86.612,36.4]
[1773332473543,4.0889789,86.689,86.612,36.4]
[1773332473741,4.12228893,86.708,86.612,36.4]
[1773332473946,4.12228893,86.708,86.62,9.14940664]
[1773332474249,4.12228893,86.708,86.621,36.38]
[1773332474849,4.12228893,86.708,86.641,10.387]
[1773332475047,4.12228893,86.708,86.621,36.38]
[1773332475048,4.07436597,86.747,86.642,36.38]
[1773332475243,4.07436597,86.747,86.66,9.14940664]
[1773332475746,4.07436597,86.776,86.7,9.14940664]
[1773332475944,9.14940664,86.79,86.701,36.38]
[1773332476152,9.14940664,86.81,86.686,34.64]
[1773332476350,4.07436597,86.809,86.72,9.14940664]
[1773332476549,4.07436597,86.789,86.687,36.38]
[1773332476746,4.07436597,86.789,86.701,0.02823714]
[1773332477049,4.05874758,86.769,86.685,0.02823714]
[1773332477347,4.05874758,86.806,86.697,0.02823714]
[1773332477541,4.05874758,86.779,86.699,0.02823714]
[1773332477740,4.05874758,86.779,86.704,0.02823714]
[1773332477950,9.14940664,86.74,86.684,0.02823714]
[1773332478245,10.375,86.738,86.684,0.02823714]
[1773332478443,9.14940664,86.74,86.684,0.02823714]
[1773332478645,4.05874758,86.759,86.684,0.02823714]
[1773332478844,9.14940664,86.75,86.684,0.02823714]
[1773332479050,9.14940664,86.75,86.685,10.381]
[1773332479252,4.05874758,86.759,86.685,10.381]
[1773332479446,9.14940664,86.77,86.67,9.14940664]
[1773332479647,4.11193506,86.778,86.69,9.14940664]
[1773332480151,4.11193506,86.769,86.706,10.379]
[1773332480351,36.36,86.811,86.699,36.34]
[1773332480352,4.11193506,86.787,86.699,36.34]
[1773332480548,4.11193506,86.787,86.7,36.34]
[1773332480742,9.14940664,86.77,86.7,36.34]
[1773332480942,318.34750278,86.813,86.65,9.14940664]
[1773332480943,13.22237499,86.75,86.65,9.14940664]
[1773332481147,4.07296835,86.749,86.65,9.14940664]
[1773332481348,4.07296835,86.749,86.651,36.34]
[1773332481648,4.07296835,86.722,86.653,10.385]
[1773332481850,4.07296835,86.722,86.654,36.34]
[1773332482451,4.07296835,86.743,86.654,36.34]
[1773332482647,9.14940664,86.75,86.651,0.02660682]
[1773332482850,4.0527286,86.764,86.671,0.02660682]
[1773332483051,10.373,86.754,86.69,0.02660682]
[1773332483250,4.0527286,86.764,86.69,0.02660682]
[1773332483750,13.20213524,86.73,86.662,0.02660682]
[1773332483950,13.20213524,86.73,86.664,0.02660682]
[1773332484151,10.376,86.729,86.667,10.384]
[1773332484356,10.376,86.729,86.667,10.41060682]
[1773332484552,13.20213524,86.73,86.667,10.41060682]
[1773332484553,4.0527286,86.728,86.667,0.02660682]
[1773332484754,3.991106,86.709,86.657,36.34]
[1773332484959,3.991106,86.709,86.638,36.34]
[1773332485158,9.14940664,86.69,86.638,36.34]
[1773332485358,9.14940664,86.69,86.639,10.387]
[1773332485854,9.14940664,86.69,86.638,36.34]
[1773332486052,3.991106,86.687,86.638,36.34]
[1773332486256,9.14940664,86.69,86.638,36.34]
[1773332486455,3.991106,86.706,86.638,36.34]
[1773332486652,9.14940664,86.7,86.61,9.14940664]
[1773332486856,13.10041336,86.7,86.612,0.2300506]
[1773332487553,3.95100672,86.696,86.624,0.2300506]
[1773332487757,3.95100672,86.679,86.612,0.2300506]
[1773332487961,9.14940664,86.66,86.611,36.34]
[1773332488361,3.95100672,86.673,86.614,10.39]
[1773332489360,3.93363622,86.712,86.624,0.26479158]
[1773332490456,3.93363622,86.712,86.654,0.26479158]
[1773332490661,3.93363622,86.739,86.654,0.26479158]
[1773332490961,3.93363622,86.739,86.64,9.14940664]
[1773332490962,10.376,86.727,86.666,10.384]
[1773332491158,3.90687005,86.726,86.655,36.34]
[1773332491352,161.344,86.767,86.655,36.34]
[1773332491353,13.05627669,86.72,86.655,36.34]
[1773332491553,3.90687005,86.74,86.661,0.31832393]
[1773332491960,3.90687005,86.729,86.662,36.34]
[1773332492260,3.90687005,86.728,86.662,36.34]
[1773332492456,3.90687005,86.749,86.663,0.31832393]
[1773332493060,3.90204311,86.745,86.678,10.382]
[1773332493561,3.90204311,86.739,86.678,10.382]
[1773332494955,3.89430945,86.736,86.663,0.31832393]
[1773332495154,3.89430945,86.755,86.681,0.34344512]
[1773332495351,3.89430945,86.779,86.681,0.34344512]
[1773332495560,3.89430945,86.779,86.713,0.34344512]
[1773332495857,3.89430945,86.779,86.715,0.34344512]
[1773332496062,9.11957152,86.8,86.721,0.34344512]
[1773332496257,9.11957152,86.82,86.74,0.34344512]
[1773332496453,13.01388097,86.84,86.741,0.34344512]
[1773332497760,13.01388097,86.84,86.761,10.372]
[1773332497962,0.00086861,86.814,86.763,0.34490381]
[1773332498560,0.00086861,86.814,86.762,36.32]
[1773332498561,3.89444872,86.814,86.762,36.32]
[1773332498762,0.00086861,86.814,86.763,0.32529725]
[1773332499361,170.14157152,86.94,86.762,36.32]
[1773332499362,9.11957152,86.88,86.781,0.32529725]
[1773332499567,3.90338339,86.909,86.821,0.32529725]
[1773332499756,14.26038339,86.889,86.822,36.64529725]
[1773332499960,3.90338339,86.888,86.822,36.64529725]
[1773332500160,3.90338339,86.888,86.822,36.32]
[1773332500364,10.359,86.873,86.8,0.32529725]
[1773332500565,3.90338339,86.888,86.802,0.32529725]
[1773332500961,10.36,86.864,86.802,0.32529725]
[1773332501161,3.91975691,86.849,86.781,0.29255022]
[1773332501468,10.36,86.866,86.796,10.368]
[1773332501667,3.91975691,86.869,86.797,0.29255022]
[1773332502470,3.91975691,86.869,86.8,0.28454706]
[1773332502664,9.11957152,86.87,86.8,0.28454706]
[1773332502866,3.91975691,86.889,86.8,0.28454706]
[1773332503670,10.358,86.883,86.804,0.1633935]
[1773332503965,10.359,86.873,86.804,0.1633935]
[1773332504267,3.98033368,86.869,86.805,36.3]
[1773332504669,3.98490693,86.861,86.805,36.3]
[1773332504967,3.98490693,86.849,86.805,36.3]
[1773332505372,10.363,86.841,86.805,36.3]
[1773332505676,3.98490693,86.829,86.777,36.3]
[1773332506870,10.365,86.826,86.777,36.3]
[1773332507066,3.99999814,86.869,86.778,0.12406459]
[1773332507269,3.99999814,86.849,86.778,0.12406459]
[1773332507466,3.99999814,86.877,86.791,0.12406459]
[1773332507673,3.99999814,86.877,86.801,0.12406459]
[1773332508578,9.11957152,86.87,86.801,0.12406459]
[1773332509179,10.359,86.869,86.804,0.22894191]
[1773332510381,3.94755948,86.868,86.797,36.28]
[1773332510777,10.363,86.841,86.797,36.28]
[1773332510978,3.94755948,86.868,86.797,36.28]
[1773332511384,3.94755948,86.868,86.81,10.366]
[1773332512772,3.90847035,86.866,86.799,10.368]
[1773332513179,3.90847035,86.866,86.801,0.30812797]
[1773332513975,9.11957152,86.88,86.811,10.67412797]
[1773332514180,3.90847035,86.887,86.812,0.30812797]
[1773332514775,3.90847035,86.887,86.819,0.29616442]
[1773332515078,3.91276613,86.907,86.821,0.29616442]
[1773332515987,3.91276613,86.907,86.838,10.363]
[1773332516984,10.357,86.891,86.838,10.363]
[1773332518683,10.357,86.891,86.821,0.29616442]
[1773332518684,3.90847035,86.885,86.828,10.364]
[1773332518986,3.90847035,86.885,86.801,0.34147935]
[1773332519775,10.36,86.868,86.815,10.366]
[1773332519981,10.36,86.868,86.802,36.26]
[1773332520176,10.36,86.868,86.802,36.60147935]
[1773332520387,3.90847035,86.865,86.802,36.26]
[1773332520589,3.90847035,86.889,86.803,0.34147935]
[1773332520981,3.90847035,86.889,86.83,10.364]
[1773332521182,3.90847035,86.889,86.803,0.34147935]
[1773332521591,278.65689389,86.917,86.837,0.3349563]
[1773332521784,3.90847035,86.916,86.837,0.3349563]
[1773332522385,10.354,86.915,86.868,10.359]
[1773332522585,10.354,86.915,86.851,36.26]
[1773332522785,3.90847035,86.916,86.841,0.40117432]
[1773332522985,13.02804187,86.91,86.842,36.26]
[1773332523186,3.90847035,86.91,86.842,36.26]
[1773332523383,10.357,86.891,86.842,36.26]
[1773332523588,10.357,86.891,86.789,20.738]
[1773332523589,3.90847035,86.869,86.773,0.40117432]
[1773332523991,10.362,86.846,86.792,10.368]
[1773332524187,10.362,86.846,86.773,0.40117432]
[1773332524388,3.90847035,86.849,86.773,0.40117432]
[1773332524790,3.90847035,86.849,86.803,10.367]
[1773332525196,3.90847035,86.849,86.773,0.40117432]
[1773332525593,10.364,86.829,86.773,10.77217432]
[1773332525891,3.90847035,86.839,86.773,0.40117432]
[1773332526289,3.90847035,86.839,86.778,10.37]
[1773332526792,10.363,86.838,86.778,10.37]
[1773332528494,10.363,86.838,86.787,10.369]
[1773332528690,3.90847035,86.858,86.78,9.11957152]
[1773332528999,3.90847035,86.879,86.835,10.363]
[1773332529698,10.357,86.887,86.835,10.363]
[1773332530096,10.356,86.895,86.843,10.362]
[1773332530492,3.90847035,86.894,86.826,36.26]
[1773332530693,10.357,86.889,86.842,10.363]
[1773332531088,3.90847035,86.894,86.842,10.363]
[1773332532302,3.90847035,86.894,86.833,10.364]
[1773332532698,3.90847035,86.894,86.826,36.26]
[1773332533000,3.90847035,86.894,86.827,0.64351805]
[1773332533198,3.90847035,86.894,86.84,10.363]
[1773332533397,3.90847035,86.894,86.827,0.64351805]
[1773332533398,10.358,86.883,86.827,0.64351805]
[1773332533593,3.90847035,86.894,86.827,0.64351805]
[1773332533801,3.90847035,86.894,86.83,10.364]
[1773332534202,14.26547035,86.886,86.83,10.364]
[1773332534905,10.358,86.879,86.83,10.364]
[1773332535702,3.90847035,86.886,86.838,10.363]
[1773332536406,10.358,86.884,86.838,10.363]
[1773332536608,3.90847035,86.884,86.827,0.64351805]
[1773332536906,10.358,86.883,86.827,0.64351805]
[1773332537500,14.26647035,86.883,86.828,10.364]
[1773332537899,3.90847035,86.883,86.827,0.64351805]
[1773332538805,10.356,86.899,86.827,0.64351805]
[1773332539599,17.15955526,86.916,86.827,0.64351805]
[1773332539600,3.90847035,86.898,86.827,0.64351805]
[1773332540203,10.356,86.896,86.848,10.362]
[1773332540506,3.9086287,86.894,86.827,0.64351805]
[1773332540706,3.9086287,86.892,86.827,0.64351805]
[1773332540909,10.355,86.905,86.855,10.361]
[1773332541105,8.47562501,86.904,86.855,10.361]
[1773332541308,8.47562501,86.903,86.855,10.361]
[1773332541505,8.47562501,86.902,86.855,10.361]
[1773332541705,8.47562501,86.901,86.855,10.361]
[1773332541904,10.356,86.898,86.847,10.362]
[1773332542208,12.61453688,86.897,86.847,10.362]
[1773332542502,3.9086287,86.897,86.847,10.362]
[1773332543012,10.357,86.893,86.847,10.362]
[1773332543405,10.357,86.89,86.847,10.362]
[1773332544105,8.68393025,86.908,86.827,0.64351805]
[1773332544301,8.70673621,86.907,86.827,0.64351805]
[1773332544507,8.70673621,86.906,86.827,0.64351805]
[1773332544701,3.9086287,86.903,86.827,0.64351805]
[1773332545004,12.61536491,86.902,86.827,0.64351805]
[1773332545213,3.9086287,86.902,86.827,0.64351805]
[1773332545509,8.70488388,86.906,86.829,0.91553199]
[1773332545806,8.68393025,86.915,86.828,20.729]
[1773332545807,8.70488388,86.914,86.841,0.91553199]
[1773332546011,8.70488388,86.913,86.841,0.91553199]
[1773332546209,12.61351258,86.922,86.841,0.91553199]
[1773332546412,3.9086287,86.919,86.841,0.91553199]
[1773332546607,9.11957152,86.93,86.826,36.26]
[1773332546608,3.9086287,86.909,86.826,36.26]
[1773332546914,3.9086287,86.877,86.826,36.26]
[1773332547114,9.11957152,86.87,86.826,3.78958528]
[1773332547411,8.70488388,86.869,86.826,3.78958528]
[1773332547612,10.361,86.856,86.826,3.78958528]
[1773332548208,10.361,86.856,86.805,10.367]
[1773332548407,10.36,86.864,86.802,36.24]
[1773332548908,10.361,86.857,86.802,36.24]
[1773332549316,10.361,86.857,86.805,10.367]
[1773332549508,9.11957152,86.85,86.802,36.24]
[1773332550108,10.362,86.851,86.802,36.24]
[1773332550311,8.70488388,86.863,86.802,36.24]
[1773332550510,9.11957152,86.85,86.802,36.24]
[1773332550708,8.70488388,86.849,86.802,36.24]
[1773332550907,8.70488388,86.848,86.802,36.24]
[1773332551105,8.70488388,86.847,86.802,36.24]
[1773332551310,8.70488388,86.849,86.802,36.24]
[1773332551507,9.11957152,86.83,86.779,36.26]
[1773332551706,9.11957152,86.83,86.771,10.371]
[1773332551707,9.11957152,86.83,86.777,36.26]
[1773332552415,10.364,86.829,86.778,10.37]
[1773332552620,9.11957152,86.83,86.777,36.26]
[1773332553117,19.48357152,86.83,86.786,10.369]
[1773332553314,19.48357152,86.83,86.777,36.26]
[1773332553710,10.364,86.83,86.777,36.26]
[1773332554409,10.365,86.822,86.778,10.37]
[1773332554810,9.09906533,86.82,86.777,36.26]
[1773332555011,9.09906533,86.82,86.777,58.43401018]
[1773332555310,9.09906533,86.84,86.778,22.17401018]
[1773332555511,17.41909973,86.865,86.781,22.17401018]
[1773332555711,10.359,86.876,86.81,22.17401018]
[1773332555911,8.70488388,86.899,86.812,22.17401018]
[1773332556118,9.09906533,86.86,86.8,22.17401018]
[1773332556618,9.09906533,86.88,86.8,22.17401018]
[1773332557305,9.09906533,86.9,86.828,22.17506832]
[1773332558016,10.358,86.884,86.83,10.364]
[1773332558315,10.357,86.892,86.837,10.363]
[1773332558510,10.357,86.892,86.838,36.26]
[1773332558718,9.09906533,86.9,86.838,36.26]
[1773332559218,49.61609036,87.05,86.839,22.17267238]
[1773332559219,8.70488388,86.917,86.839,22.17267238]
[1773332559416,8.70488388,86.916,86.839,22.17267238]
[1773332559615,10.354,86.911,86.862,10.36]
[1773332559918,9.09906533,86.92,86.839,22.17267238]
[1773332560311,8.70488388,86.937,86.839,22.17267238]
[1773332560514,9.09906533,86.94,86.85,9.09906533]
[1773332560818,9.09906533,86.94,86.851,22.17267238]
[1773332561220,10.351,86.939,86.876,10.359]
[1773332561913,10.352,86.931,86.876,10.359]
[1773332562515,10.353,86.921,86.875,36.26]
[1773332562718,9.09906533,86.92,86.849,22.16665268]
[1773332563018,9.09906533,86.92,86.852,36.26]
[1773332563220,10.356,86.898,86.852,36.26]
[1773332565619,8.70488388,86.919,86.824,36.26]
[1773332565620,9.09906533,86.88,86.824,36.26]
[1773332565818,9.09906533,86.88,86.821,36.26]
[1773332566022,9.09906533,86.88,86.822,36.26]
[1773332566213,19.45706533,86.88,86.823,10.365]
[1773332566414,19.45706533,86.88,86.823,32.57639287]
[1773332566720,9.09906533,86.88,86.823,22.21139287]
[1773332566921,9.09906533,86.88,86.823,32.57639287]
[1773332567215,9.09906533,86.88,86.823,22.21139287]
[1773332567421,9.09906533,86.9,86.823,22.21139287]
[1773332567915,9.09906533,86.9,86.84,10.363]
[1773332568114,9.09906533,86.9,86.84,32.55157295]
[1773332568719,9.09906533,86.9,86.841,36.26]
[1773332568917,9.09906533,86.9,86.821,22.17099446]
[1773332568918,9.09906533,86.9,86.833,36.26]
[1773332569625,9.09906533,86.88,86.811,36.26]
[1773332569815,9.09906533,86.88,86.813,22.17099446]
[1773332570020,9.09906533,86.88,86.814,36.26]
[1773332570527,9.09906533,86.88,86.816,10.366]
[1773332570722,8.61671047,86.894,86.816,22.17099446]
[1773332571025,36.26,86.93,86.816,22.17099446]
[1773332571026,9.09906533,86.88,86.816,22.17099446]
[1773332571923,10.35,86.95,86.893,10.356]
[1773332572116,3.73319974,86.957,86.886,36.26]
[1773332572319,3.73319974,86.957,86.872,3.67079383]
[1773332572320,3.73319974,86.957,86.887,36.26]
[1773332573321,10.349,86.954,86.905,10.355]
[1773332573626,3.73319974,86.957,86.905,10.355]
[1773332574125,3.73319974,86.976,86.89,3.67079383]
[1773332574626,10.348,86.966,86.915,10.354]
[1773332574829,3.73319974,86.976,86.915,10.354]
[1773332575026,3.73319974,86.976,86.906,36.26]
[1773332576023,3.73319974,86.969,86.907,10.355]
[1773332576522,10.349,86.957,86.907,10.355]
[1773332576730,3.73319974,86.956,86.906,36.26]
[1773332577232,9.09906533,87.0,86.907,3.67079383]
[1773332577233,10.345,86.978,86.907,3.67079383]
[1773332577418,10.345,86.978,86.916,3.67079383]
[1773332577724,10.345,86.978,86.917,36.24]
[1773332578428,10.346,86.969,86.917,36.24]
[1773332578727,3.73319974,86.979,86.917,36.24]
[1773332580027,10.346,86.969,86.917,36.24]
[1773332580328,3.73319974,86.979,86.917,36.24]
[1773332580628,10.346,86.97,86.917,36.24]
[1773332580824,3.73319974,86.979,86.917,36.24]
[1773332581225,10.346,86.971,86.917,36.24]
[1773332581424,14.07919974,86.971,86.917,36.24]
[1773332581624,3.73319974,86.97,86.902,36.24]
[1773332581823,3.73319974,86.959,86.881,3.67079383]
[1773332582023,3.73319974,86.959,86.882,36.24]
[1773332582331,10.349,86.947,86.882,39.91079383]
[1773332582530,3.73319974,86.946,86.882,39.91079383]
[1773332582828,10.35,86.936,86.882,3.67079383]
[1773332583429,10.351,86.928,86.882,3.67079383]
[1773332583622,3.73319974,86.946,86.882,3.67079383]
[1773332584620,20.689,86.988,86.88,36.24]
[1773332584621,10.352,86.921,86.88,36.24]
[1773332585021,3.73319974,86.939,86.88,36.24]
[1773332585225,10.352,86.922,86.88,36.24]
[1773332585421,3.73319974,86.939,86.88,36.24]
[1773332586019,10.354,86.907,86.853,10.36]
[1773332586323,9.09906533,86.93,86.845,3.67079383]
[1773332586324,3.73319974,86.909,86.845,3.67079383]
[1773332586526,3.73319974,86.909,86.846,36.24]
[1773332588030,10.355,86.895,86.846,36.24]
[1773332588533,3.73319974,86.899,86.829,10.363]
[1773332588728,3.73319974,86.899,86.82,9.09906533]
[1773332588729,3.73319974,86.899,86.831,3.67079383]
[1773332589031,10.357,86.883,86.831,3.67079383]
[1773332589233,3.73319974,86.899,86.831,3.67079383]
[1773332590028,10.356,86.886,86.831,3.67079383]
[1773332590235,10.356,86.886,86.832,36.24]
[1773332590636,10.358,86.876,86.832,36.24]
[1773332590835,3.73319974,86.899,86.832,36.24]
[1773332591235,10.357,86.885,86.832,36.24]
[1773332591438,3.73319974,86.879,86.832,36.24]
[1773332591627,3.73319974,86.879,86.808,36.24]
[1773332591831,10.36,86.858,86.794,3.67079383]
[1773332592029,9.09906533,86.88,86.795,36.24]
[1773332592030,9.09906533,86.84,86.795,36.24]
[1773332592229,3.73319974,86.839,86.774,3.67079383]
[1773332593934,10.363,86.829,86.774,3.67079383]
[1773332594434,3.73319974,86.865,86.781,3.67079383]
[1773332594634,3.73319974,86.865,86.783,3.67079383]
[1773332595041,10.359,86.863,86.803,10.366]
[1773332595232,3.73319974,86.865,86.801,3.67079383]
[1773332595539,3.73319974,86.865,86.803,3.67079383]
[1773332596139,3.73319974,86.865,86.804,10.366]
[1773332597240,10.359,86.863,86.804,10.366]
[1773332597636,9.09906533,86.88,86.76,9.09906533]
[1773332597637,3.73319974,86.859,86.783,3.67079383]
[1773332597839,3.73319974,86.839,86.746,3.67079383]
[1773332598142,3.73319974,86.839,86.748,3.67079383]
[1773332598340,3.73319974,86.82,86.763,10.371]
[1773332598540,3.73319974,86.819,86.748,3.67079383]
[1773332598740,3.73319974,86.819,86.755,36.26]
[1773332599442,3.73319974,86.819,86.756,3.67079383]
[1773332600036,10.363,86.831,86.769,10.37]
[1773332600336,10.363,86.831,86.769,3.6824521]
[1773332600643,10.362,86.836,86.781,10.369]
[1773332600937,3.73319974,86.837,86.781,10.369]
[1773332601138,10.363,86.828,86.78,10.369]
[1773332601341,3.73319974,86.837,86.769,3.6824521]
[1773332601542,3.73319974,86.837,86.771,3.6824521]
[1773332602541,3.70483456,86.819,86.763,10.371]
[1773332603640,3.70483456,86.839,86.772,3.6824521]
[1773332604134,12.80389989,86.86,86.781,3.6824521]
[1773332604345,3.70483456,86.859,86.781,3.6824521]
[1773332604847,10.361,86.844,86.788,10.368]
[1773332605540,10.361,86.844,86.794,10.367]
[1773332605736,3.70483456,86.859,86.795,3.6824521]
[1773332606045,3.70483456,86.859,86.797,3.6824521]
[1773332606245,3.70483456,86.879,86.8,9.09906533]
[1773332606446,3.70483456,86.879,86.801,3.6824521]
[1773332606744,3.70483456,86.879,86.802,36.26]
[1773332607343,3.70483456,86.879,86.812,10.365]
[1773332607839,3.70483456,86.879,86.803,3.6824521]
[1773332608841,10.36,86.856,86.811,10.365]
[1773332610251,3.70483456,86.899,86.821,3.6824521]
[1773332610848,10.356,86.893,86.821,3.6824521]
[1773332611049,10.356,86.893,86.823,3.6824521]